Cogmind - Beta 12 @@@ ROGUE MODE // 2023.04.01 @ 11:20:28 Player: 3.14 Result: Self-destructed Performance ------------- Evolutions (6) 3000 Regions Visited (19) 3800 Robots Destroyed (248) 1240 Value Destroyed (8253) 8253 Prototype IDs (35) 700 Alien Tech Used (1) 200 Bonus (3557) 3557 TOTAL SCORE: 20750 Bonus ------- High Alert Combat Kills 653 Follower Combat Kills 2257 Network Hubs Disabled 200 Met Data Miner 300 Met Zhirov 300 Met R17 at Cetus 500 Friendly Fire -653 Cogmind --------- Core Integrity 1036/1150 Matter 103/300 Energy 380/380 System Corruption 1% Temperature Warning (333) Movement Immobile (Siege) Ox1 Location -4/Factory Parts ------- > --- POWER (2) -------- Reinforced Fission Core Light Antimatter Reactor > --- PROPULSION (6) --- Centrium Heavy Treads > --- UTILITY (9) ------ Huge Storage Unit Experimental Targeting Computer Core Analyzer Centrium Medium Armor Plating Graphene Brace Improved Thermal Shield > --- WEAPON (2) ------- Heavy Mass Driver > --- INVENTORY (25) --- Antimatter Reactor Improved Cooling System Improved Cooling System High-capacity Matter Pod (190) Weapon Cycler Transmission Jammer Improved Medium Armor Plating Improved Thermal Shield EM Disruption Field Authchip [Propulsion] Improved System Restoration Module High-powered Tractor Beam High-powered Tractor Beam Transdimensional Reconstructor Improved Heavy Laser Wave Gun Heavy Ion Cannon Heavy Plasma Cannon Gauss Rifle Gauss Rifle KE Penetrator Heavy Missile Launcher Heavy Missile Launcher Phasing Sabre Peak State ------------ > --- POWER ------------ Fusion Reactor Light Antimatter Reactor > --- PROPULSION ------- Centrium Heavy Treads Centrium Heavy Treads Myomer Leg > --- UTILITY ---------- Huge Storage Unit Experimental Targeting Computer Core Analyzer Weapon Cycler Centrium Medium Armor Plating Centrium Medium Armor Plating Improved Shield Generator Experimental Hacking Suite > --- WEAPON ----------- Advanced KE Penetrator Advanced KE Penetrator > --- INVENTORY -------- Cold Fusion Reactor Centrium Heavy Treads Improved Cooling System High-capacity Matter Pod Transmission Jammer Experimental Weapon Shielding Improved Focal Shield EM Disruption Field High-powered Tractor Beam High-powered Tractor Beam Transdimensional Reconstructor Improved Heavy Laser Wave Gun Wave Gun Wave Gun Heavy Ion Cannon Heavy Plasma Cannon Heavy Phase Cannon Gauss Rifle Gauss Rifle KE Penetrator Heavy Missile Launcher Heavy Missile Launcher Phasing Sabre [Rating: 131] Favorites ----------- Power Cold Fusion Reactor Engine Heavy Ion Engine Power Core Reinforced Fission Core Reactor Cold Fusion Reactor Propulsion Armored Treads Treads Armored Treads Leg Advanced Myomer Leg Utility Huge Storage Unit Device Hardlight Generator Storage Huge Storage Unit Processor Core Analyzer Hackware Experimental Hacking Suite Protection Hardened Medium Armor Plating Weapon Enhanced Autogun Energy Gun Particle Gun Energy Cannon Heavy Phase Cannon Ballistic Gun Enhanced Autogun Ballistic Cannon Heavy Mass Driver Launcher Mini Grenade Launcher Impact Weapon Mace Slashing Weapon Phasing Sabre Build | -11 -10 -9 -8 -7 -7 -7 -7 -6 -6 -6 -6 -6 -6 -5 -5 -5 -5 -4 -4 ------- Run | Jun Mat Mat Mat Fac Low Low Dat Pro Fac Ext Cet Arc Hub Fac Upp Upp Zhi Pro Fac Slots Evolved 12 | . . 2 2 2 . . . . 2 . . . . 2 . . . . 2 Power 1 | . . . . . . . . . . . . . . 1 . . . . . Propulsion 4 | . . 1 . 1 . . . . 1 . . . . . . . . . 1 Utility 7 | . . 1 2 1 . . . . 1 . . . . 1 . . . . 1 Weapon . | . . . . . . . . . . . . . . . . . . . . Parts Attached 227 | . 14 22 18 49 9 6 2 6 13 11 5 3 6 4 4 10 7 16 22 Power 14 | . 1 2 . 1 . . . . . 1 . . 1 3 . . 1 2 2 Engine 3 | . 1 2 . . . . . . . . . . . . . . . . . Core 1 | . . . . . . . . . . . . . . . . . . . 1 Reactor 10 | . . . . 1 . . . . . 1 . . 1 3 . . 1 2 1 Propulsion 42 | . 5 5 4 14 . . . . 1 7 1 . 1 . . . . 2 2 Treads 33 | . 2 5 4 9 . . . . 1 7 1 . 1 . . . . 1 2 Leg 9 | . 3 . . 5 . . . . . . . . . . . . . 1 . Wheel . | . . . . . . . . . . . . . . . . . . . . Hover . | . . . . . . . . . . . . . . . . . . . . Flight . | . . . . . . . . . . . . . . . . . . . . Utility 91 | . 5 4 4 22 1 4 . 1 9 1 1 3 4 1 1 6 5 4 15 Device 53 | . 2 . 1 15 1 3 . 1 3 . . 2 3 . 1 4 4 3 10 Storage 4 | . 3 1 . . . . . . . . . . . . . . . . . Processor 5 | . . 1 1 3 . . . . . . . . . . . . . . . Hackware 2 | . . . . . . . . . 2 . . . . . . . . . . Protection 27 | . . 2 2 4 . 1 . . 4 1 1 1 1 1 . 2 1 1 5 Artifact . | . . . . . . . . . . . . . . . . . . . . Weapon 80 | . 3 11 10 12 8 2 2 5 3 2 3 . . . 3 4 1 8 3 Energy Gun 7 | . 1 1 4 . . . . . . 1 . . . . . . . . . Energy Cannon 6 | . . . . 2 . . . . 1 . . . . . . . . 3 . Ballistic Gun 43 | . 2 7 3 7 6 1 2 3 2 1 2 . . . 2 2 . 3 . Ballistic Cannon 4 | . . . 1 1 . . . . . . . . . . . . . . 2 Launcher 17 | . . 3 2 1 2 1 . 2 . . . . . . 1 2 1 1 1 Special Weapon . | . . . . . . . . . . . . . . . . . . . . Impact Weapon 2 | . . . . 1 . . . . . . 1 . . . . . . . . Slashing Weapon 1 | . . . . . . . . . . . . . . . . . . 1 . Piercing Weapon . | . . . . . . . . . . . . . . . . . . . . Special Melee Weapon . | . . . . . . . . . . . . . . . . . . . . Unidentified Prototypes 16 | . . 3 . 4 . . . . 2 1 3 . . . . . 3 . . Corrupted Parts 3 | . . . . . . . . . . 1 . . 1 . . . . 1 . System Corruption 12 | . . . . . . . . . . 7 . . 3 . . . . 2 . Parts Lost 17 | . . 1 . 1 . . . 1 . . . . 1 . 1 1 . 4 7 Power . | . . . . . . . . . . . . . . . . . . . . Propulsion 5 | . . 1 . . . . . . . . . . . . . . . 1 3 Utility 10 | . . . . 1 . . . 1 . . . . 1 . . 1 . 2 4 Weapon 2 | . . . . . . . . . . . . . . . 1 . . 1 . Highest Loss Streak 4 | . . 1 . 1 . . . 1 . . . . 1 . 1 1 . 2 4 To Critical Strikes 1 | . . . . . . . . . . . . . . . 1 . . . . Average Slot Usage (%) 92 | . 98 99 99 93 100 100 85 99 92 92 91 86 85 81 82 85 88 87 70 Engine 2 | . 14 11 9 5 . . . . . . . . . . . . . . . Reactor 5 | . . . . 1 7 7 7 7 6 5 6 6 6 10 11 11 11 11 6 Treads 25 | . 8 32 27 24 30 30 30 30 33 32 31 26 25 17 17 17 17 11 9 Leg 2 | . 19 . . 4 . . . . . . . . . . . . . 4 1 Device 9 | . 10 3 4 6 13 15 15 14 9 6 6 6 6 5 8 13 14 16 13 Storage 7 | . 16 11 9 7 7 7 7 7 6 6 6 6 6 5 5 5 5 5 5 Processor 12 | . . 7 18 16 16 15 15 15 13 13 13 13 13 11 11 11 11 11 10 Hackware 2 | . . . . . . . . . 2 6 6 6 6 5 5 5 5 5 5 Protection 6 | . . 11 13 7 7 7 7 7 6 6 6 6 6 11 7 5 7 5 6 Energy Gun 1 | . 14 4 9 . . . . . . . . . . . . . . . . Ballistic Gun 12 | . 13 17 7 14 14 14 1 14 12 13 11 13 13 11 10 10 11 7 1 Naked Turns . | . . . . . . . . . . . . . . . . . . . . Heaviest Build 158 | 13 50 97 104 117 112 112 109 113 126 121 123 129 129 148 148 143 132 135 158 Greatest Support 190 | 20 40 60 60 120 80 80 80 80 100 130 160 160 190 190 190 190 190 190 160 Greatest Overweight (x) 2 | . 2 1 1 1 1 1 1 1 1 1 . . . . . . . . . Average Overweight (x) . | . . . 1 . 1 1 1 1 1 . . . . . . . . . . Largest Inventory Capacity 25 | . 20 25 25 25 25 25 25 25 25 25 25 25 25 25 25 25 25 25 25 Average Capacity 23 | . 13 20 25 25 25 25 25 25 25 25 25 25 25 25 25 25 25 25 25 Most Carried 25 | . 14 25 25 25 25 25 25 25 25 25 25 25 25 23 23 23 25 25 25 Average Carried 23 | . 10 17 24 24 24 25 25 24 24 24 24 24 24 21 22 21 23 24 24 Final Capacity 25 | 8 20 25 25 25 25 25 25 25 25 25 25 25 25 25 25 25 25 25 25 Final Carried 25 | 6 14 25 25 25 25 25 25 24 25 25 25 25 21 23 22 23 25 24 24 Class Distribution -------------------- 57% | Scavenger-Mutant 41% | Mutant Dominant Class ---------------- Mutant | -10/Materials Mutant | -9/Materials Scavenger-Mutant | -8/Materials Mutant | -7/Factory Mutant | -7/Lower Caves Mutant | -7/Lower Caves Mutant | -7/Data Miner Mutant | -6/Proximity Caves Scavenger-Mutant | -6/Factory Scavenger-Mutant | -6/Extension Scavenger-Mutant | -6/Cetus Scavenger-Mutant | -6/Archives Scavenger-Mutant | -6/Hub_04(d) Scavenger-Mutant | -5/Factory Scavenger-Mutant | -5/Upper Caves Scavenger-Mutant | -5/Upper Caves Scavenger-Mutant | -5/Zhirov Scavenger-Mutant | -4/Proximity Caves Scavenger-Mutant | -4/Factory Resources | -11 -10 -9 -8 -7 -7 -7 -7 -6 -6 -6 -6 -6 -6 -5 -5 -5 -5 -4 -4 ----------- Run | Jun Mat Mat Mat Fac Low Low Dat Pro Fac Ext Cet Arc Hub Fac Upp Upp Zhi Pro Fac Matter Collected 6643 | 197 357 677 200 1854 232 182 . 242 459 232 180 54 217 112 222 340 . 472 414 Remotely 446 | . . . . 220 . . . . . . . . . . . . . . 226 Salvage Created 11086 | . 354 2123 343 2678 287 220 . 92 792 152 140 73 1064 125 548 597 . 782 716 Parts 554 | . 18 108 22 129 15 20 . 3 34 5 10 2 60 8 34 19 . 26 41 Haulers Intercepted 11 | . 2 6 1 2 . . . . . . . . . . . . . . . Recyclers Shooed 16 | . . 6 1 9 . . . . . . . . . . . . . . . Parts Field Recycled . | . . . . . . . . . . . . . . . . . . . . Retrieved Matter . | . . . . . . . . . . . . . . . . . . . . Parts Self-Destructed 126 | . . . . . 15 20 . 16 . . . . . . 39 18 . 18 . Prevented . | . . . . . . . . . . . . . . . . . . . . Kills | -11 -10 -9 -8 -7 -7 -7 -7 -6 -6 -6 -6 -6 -6 -5 -5 -5 -5 -4 -4 ------- Run | Jun Mat Mat Mat Fac Low Low Dat Pro Fac Ext Cet Arc Hub Fac Upp Upp Zhi Pro Fac Combat Hostiles Destroyed 161 | . 5 29 12 25 9 8 . 3 9 . 2 1 6 1 16 13 . 12 10 Guns 100 | . 5 20 4 21 3 4 . 1 9 . 2 1 3 1 11 7 . 7 1 Cannons 9 | . . . . . . . . . . . . . . . . . . 1 8 AOE 47 | . . 9 6 4 6 4 . 2 . . . . 1 . 5 6 . 4 . Classes Destroyed 19 | . 3 6 1 5 1 1 . . . . . . 1 . . 1 . . . Worker 25 | . . 3 1 10 . . . . 2 . . . 6 3 . . . . . Builder 9 | . . 2 . . . . . . . . . . 5 . . . . . 2 Hauler 11 | . 2 6 1 2 . . . . . . . . . . . . . . . Recycler 31 | . 1 9 1 15 . . . . 1 1 . . 2 . . . . . 1 Mechanic 1 | . . . . 1 . . . . . . . . . . . . . . . Operator 2 | . . . . 1 . . . . . . . . 1 . . . . . . Watcher 7 | . . 3 . 2 . . . . 1 . . . 1 . . . . . . Swarmer 41 | . . 8 8 . 3 7 . 1 . . . . . . 10 4 . . . Grunt 62 | . 5 16 1 12 3 . . 1 4 . . . 3 . 1 5 . 7 4 Brawler 5 | . . 1 . 2 . . . . 1 . . . . . 1 . . . . Duelist 4 | . . . . . 1 . . 1 . . . . . . 1 . . 1 . Protector 1 | . . . . 1 . . . . . . . . . . . . . . . Sentry 14 | . . 4 1 3 1 . . . 2 . . 1 . 1 1 . . . . Specialist 1 | . . . . . . . . . . . . . 1 . . . . . . Hunter 14 | . . . 2 . 1 . . . 2 . . . 2 . 2 1 . 4 . Programmer 13 | . . . . 5 . 1 . . . . . . . . . 2 . . 5 Heavy 3 | . . . . 2 . . . . . . . . . . . . . . 1 Cetus Guard 2 | . . . . . . . . . . . 2 . . . . . . . . Enhanced Grunt 1 | . . . . . . . . . . . . . 1 . . . . . . Decomposer 1 | . . . . . . . . . . . . . . . . . . 1 . Packrat 2 | . . . . . . . . . . . . . . . . 2 . . . Samaritan 1 | . . . . . . 1 . . . . . . . . . . . . . Mutant 1 | . . . . . . . . . . . . . . . . 1 . . . Best Kill Streak 13 | . 4 7 7 11 4 4 . 2 2 1 2 1 13 2 5 5 . 6 5 Combat Bots Only 6 | . 3 6 6 3 4 4 . 2 2 . 2 1 3 1 5 5 . 6 5 Max Kills in Single Turn 11 | . 1 3 3 7 2 5 . 1 1 1 1 1 11 1 4 4 . 1 2 Gunslinging 1 | . . 1 . . . . . . . . . . . . 1 . . . . Exploded 4 | . . 3 3 2 2 4 . 1 . . . . 1 . 4 4 . 1 . Melee . | . . . . . . . . . . . . . . . . . . . . Uniques/NPCs Destroyed . | . . . . . . . . . . . . . . . . . . . . Combat | -11 -10 -9 -8 -7 -7 -7 -7 -6 -6 -6 -6 -6 -6 -5 -5 -5 -5 -4 -4 -------- Run | Jun Mat Mat Mat Fac Low Low Dat Pro Fac Ext Cet Arc Hub Fac Upp Upp Zhi Pro Fac Damage Taken 10898 | . 218 707 473 1943 283 141 . 247 705 155 76 . 1719 51 475 435 . 1068 2202 Core 816 | . 55 106 28 152 40 . . . 9 28 . . 151 . 68 14 . 51 114 Absorbed by Shields 1939 | . . . . 548 188 52 . 69 168 62 . . 282 12 116 100 . 342 . Reduced by Siege Mode 197 | . . . . . . . . . . . . . . . . . . 36 161 Redirected to Shielding 157 | . . . . . . . . . . . . . . . . . . . 157 Regen/Repaired (Parts) 326 | . 22 60 . . . . . . . 244 . . . . . . . . . Core Remaining (%) 82 | 100 78 73 94 . . . . 72 . . . . 77 . . . . 86 . Volleys Fired 563 | . 28 98 27 150 16 9 . 15 44 7 12 3 23 5 20 24 . 34 48 Largest 2 | . 2 2 2 2 2 2 . 2 2 2 2 2 2 2 2 2 . 2 2 Hottest 155 | . 85 88 112 69 56 50 . 53 56 56 70 70 70 70 70 70 . 155 125 Shots Fired 1065 | . 56 187 50 294 27 18 . 27 88 17 24 6 48 10 38 43 . 64 68 Gun 965 | . 56 179 43 286 22 17 . 22 88 17 24 6 48 10 36 38 . 54 19 Cannon 60 | . . . 3 3 . . . . . . . . . . . . . 6 48 Launcher 40 | . . 8 4 5 5 1 . 5 . . . . . . 2 5 . 4 1 Special . | . . . . . . . . . . . . . . . . . . . . Kinetic 902 | . 28 146 9 289 22 17 . 22 88 17 24 6 48 10 36 38 . 54 48 Thermal 123 | . 28 33 37 . . . . . . . . . . . . . . 6 19 Explosive 40 | . . 8 4 5 5 1 . 5 . . . . . . 2 5 . 4 1 Electromagnetic . | . . . . . . . . . . . . . . . . . . . . Robot Hit Streak 27 | . 10 14 13 20 8 11 . 8 13 11 23 27 7 10 8 16 . 15 20 Robot Miss Streak 6 | . 3 2 4 6 1 2 . 1 3 2 . 1 3 . 2 2 . 3 2 Penetration Max 1 | . . . . . . . . . 1 1 1 . 1 1 1 1 . 1 1 Secondary Targets 13 | . . 2 . 2 . 2 . . 1 . . . 1 . 2 3 . . . Max Gunslinging Chain 1 | . . 1 . 1 . 1 . . 1 . . . 1 . 1 1 . . . Shots Hit Robots 740 | . 42 133 34 203 18 11 . 14 62 13 23 4 24 7 25 32 . 45 50 Core Hits 452 | . 16 70 15 108 16 10 . 17 35 7 9 4 34 4 24 28 . 34 21 Critical Kills 20 | . . 1 . 1 . . . . 3 1 . 1 2 1 5 2 . 3 . Critical Parts Destroyed 20 | . . 1 . 1 . . . . 1 . . . 4 2 4 2 . 4 1 Critical Strikes 48 | . . 5 2 2 . . . . 4 1 . 1 6 3 9 4 . 7 4 Burn 5 | . . 3 2 . . . . . . . . . . . . . . . . Destroy 40 | . . 2 . 2 . . . . 4 1 . 1 6 3 9 4 . 7 1 Blast 3 | . . . . . . . . . . . . . . . . . . . 3 Melee Attacks 11 | . . . . 3 . . . . . . 6 . . . . . . 2 . Impact 9 | . . . . 3 . . . . . . 6 . . . . . . . . Slashing 2 | . . . . . . . . . . . . . . . . . . 2 . Piercing . | . . . . . . . . . . . . . . . . . . . . Sneak Attacks . | . . . . . . . . . . . . . . . . . . . . Combat Hostiles . | . . . . . . . . . . . . . . . . . . . . Follow-up Attacks . | . . . . . . . . . . . . . . . . . . . . Damage Inflicted 23585 | . 545 2919 949 5072 779 429 . 557 1264 347 549 158 2563 206 1133 1736 . 1739 2640 Guns 13436 | . 521 1959 509 3501 288 181 . 241 1238 297 549 138 899 206 729 837 . 953 390 Cannons 2467 | . . . 27 43 . . . . . . . . . . . . . 165 2232 Explosions 7497 | . . 942 413 1521 491 248 . 316 . . . . 1649 . 404 892 . 621 . Melee . | . . . . . . . . . . . . . . . . . . . . Ramming 185 | . 24 18 . 7 . . . . 26 50 . 20 15 . . 7 . . 18 Kinetic 13988 | . 152 1561 73 3544 288 181 . 241 1238 297 549 138 899 206 729 837 . 953 2102 Thermal 2669 | . 369 398 463 754 . . . . . . . . . . . . . 165 520 Explosive 5094 | . . 942 413 767 491 248 . 316 . . . . . . 404 892 . 621 . Electromagnetic 1649 | . . . . . . . . . . . . . 1649 . . . . . . Impact . | . . . . . . . . . . . . . . . . . . . . Slashing . | . . . . . . . . . . . . . . . . . . . . Piercing . | . . . . . . . . . . . . . . . . . . . . Highest Corruption 11 | . 1 . . 2 2 3 3 3 . 7 7 7 11 . . . . 2 2 Average Corruption 3 | . 1 . . 1 2 2 3 3 . 7 7 7 7 . . . . 2 1 Corruption Purged 1 | . . . . . . . . . . . . . . . . . . . 1 Corruption Blocked . | . . . . . . . . . . . . . . . . . . . . Effects 147 | . 7 . . 21 10 22 3 18 . 36 8 3 14 . . . . . 5 Message Errors 40 | . 3 . . 4 2 5 2 7 . 11 4 . 1 . . . . . 1 Matter Fused 38 | . 1 . . 9 5 3 1 2 . 9 1 . 7 . . . . . . Heat Flow Errors 14 | . . . . . 2 3 . . . 4 1 2 . . . . . . 2 Energy Discharges 16 | . 1 . . 1 . 4 . 2 . 5 1 1 1 . . . . . . Parts Rejected 2 | . . . . . . 1 . . . . . . 1 . . . . . . Parts Fused 1 | . . . . 1 . . . . . . . . . . . . . . . Data Loss (minor) 14 | . 1 . . 3 1 4 . 1 . 2 . . 2 . . . . . . Data Loss (major) 8 | . 1 . . 2 . 1 . 1 . 2 1 . . . . . . . . Misfires 9 | . . . . . . 1 . 2 . 3 . . 2 . . . . . 1 Alerts 4 | . . . . . . . . 3 . . . . . . . . . . 1 Weapon Failures 1 | . . . . 1 . . . . . . . . . . . . . . . Overload Shots . | . . . . . . . . . . . . . . . . . . . . Overflow Damage 390 | . . 92 19 110 . . . . . . . . 45 . . 24 . . 100 Projectiles 100 | . . . . . . . . . . . . . . . . . . . 100 Explosions 290 | . . 92 19 110 . . . . . . . . 45 . . 24 . . . Melee . | . . . . . . . . . . . . . . . . . . . . Knockbacks 6 | . . . 1 1 . . . . . . . . . . . 1 . . 3 Impact 1 | . . . . . . . . . . . . . . . . 1 . . . Kinetic 4 | . . . 1 1 . . . . . . . . . . . . . . 2 Secondary 1 | . . . . . . . . . . . . . . . . . . . 1 Self-Inflicted Damage 431 | . . 39 16 239 17 . . 17 . . . . 103 . . . . . . Shots 10 | . . 3 1 3 1 . . 1 . . . . 1 . . . . . . Rammed 19 | . 2 2 1 1 . . . . 3 6 . 1 1 . . 1 . . 1 Targets Rammed 24 | . 6 2 1 2 . . . . 3 6 . 1 1 . . 1 . . 1 Kicked 4 | . 4 . . . . . . . . . . . . . . . . . . Crushed 1 | . . . . 1 . . . . . . . . . . . . . . . Highest Temperature 341 | . 267 72 100 66 287 255 . 4 6 265 167 240 32 . . 37 . 132 341 Average Temperature 61 | . 72 21 44 14 163 120 . 4 3 114 97 120 13 . . 16 . 47 173 Received Heat Transfer 2035 | . 144 249 36 319 41 . . 65 182 42 . . 451 14 45 83 . 115 249 Effects 5 | . . . . . 2 . . . . 1 . . . . . . . . 2 Energy Bleed 3 | . . . . . . . . . . 1 . . . . . . . . 2 Interference 2 | . . . . . 2 . . . . . . . . . . . . . . Siege Activations 4 | . . . . . . . . . . . . . . . . . . 1 3 Total Turns 83 | . . . . . . . . . . . . . . . . . . 19 64 Longest Duration 37 | . . . . . . . . . . . . . . . . . . 19 37 Robots Corrupted 3 | . . . . . . . . . . . . . 3 . . . . . . Combat Hostiles 2 | . . . . . . . . . . . . . 2 . . . . . . Parts Fried 13 | . . . . 1 . . . . . . . . 12 . . . . . . Impact Corruptions 2 | . . . . . . . . . . . . . 1 . . . . . 1 Robots Melted 3 | . . . 2 . . . . . . . . . . . . . . . 1 Combat Hostiles 3 | . . . 2 . . . . . . . . . . . . . . . 1 Parts Melted 9 | . 1 1 3 . . . . . . . . . . . 1 . . 1 2 Heat Transferred 4348 | . 851 1110 1147 500 . . . . . . . . . . . . . 185 555 Parts Sabotaged . | . . . . . . . . . . . . . . . . . . . . Parts Stolen . | . . . . . . . . . . . . . . . . . . . . Parts Stripped . | . . . . . . . . . . . . . . . . . . . . Power Chain Reactions . | . . . . . . . . . . . . . . . . . . . . Missiles Intercepted . | . . . . . . . . . . . . . . . . . . . . Alert | -11 -10 -9 -8 -7 -7 -7 -7 -6 -6 -6 -6 -6 -6 -5 -5 -5 -5 -4 -4 ------- Run | Jun Mat Mat Mat Fac Low Low Dat Pro Fac Ext Cet Arc Hub Fac Upp Upp Zhi Pro Fac Peak Influence 1100 | . 119 629 446 730 . . . . 223 243 589 373 996 492 . . . . 1100 Initial 981 | . . 12 125 55 . . . . 70 53 88 235 130 473 . . . . 981 Average 239 | . 42 320 205 210 . . . . 87 58 333 346 336 455 . . . . 935 Maximum Alert Level 4 | . . 2 2 3 . . . . 1 1 2 1 3 2 . . . . 4 Low Security (%) 60 | . 100 28 53 53 . . . . 96 96 50 . 45 . . . . . . Level 1 18 | . . 42 33 28 . . . . 3 3 4 100 15 17 . . . . . Level 2 14 | . . 28 12 17 . . . . . . 45 . 31 82 . . . . 4 Level 3 7 | . . . . 1 . . . . . . . . 6 . . . . . 93 Level 4 . | . . . . . . . . . . . . . . . . . . . 1 Level 5 . | . . . . . . . . . . . . . . . . . . . . High Security . | . . . . . . . . . . . . . . . . . . . . Max Security . | . . . . . . . . . . . . . . . . . . . . Squads Dispatched 37 | . 1 4 1 10 . . . . 6 2 . . 6 3 . . . . 4 Investigation 7 | . 1 1 . . . . . . 2 1 . . . 1 . . . . 1 Extermination 8 | . . . . 5 . . . . 1 . . . . 1 . . . . 1 Reinforcement 17 | . . 3 . 4 . . . . . 1 . . 6 1 . . . . 2 Assault . | . . . . . . . . . . . . . . . . . . . . Garrison 5 | . . . 1 1 . . . . 3 . . . . . . . . . . Intercept . | . . . . . . . . . . . . . . . . . . . . Searches Triggered 2 | . . . . . . . . . . . . . . . . . . . 2 Data Miner Redirects 1 | . . . . . . . . . . 1 . . . . . . . . . Construction Impeded 4 | . . 1 . . . . . . . 1 . . 2 . . . . . . Haulers Reinforced 1 | . . . . . . . . . . . . . 1 . . . . . . Active Scanning Responses . | . . . . . . . . . . . . . . . . . . . . Cargo Convoy Interrupts 1 | . . . . 1 . . . . . . . . . . . . . . . Stealth | -11 -10 -9 -8 -7 -7 -7 -7 -6 -6 -6 -6 -6 -6 -5 -5 -5 -5 -4 -4 --------- Run | Jun Mat Mat Mat Fac Low Low Dat Pro Fac Ext Cet Arc Hub Fac Upp Upp Zhi Pro Fac Distress Signals 12 | . . 4 2 1 . . . . . 1 2 . 2 . . . . . . Communications Jammed 1 | . . . . 1 . . . . . . . . . . . . . . . Distress Signals . | . . . . . . . . . . . . . . . . . . . . Times Spotted 303 | . 15 41 15 49 10 9 . 11 16 22 11 4 27 4 20 12 . 21 16 Peak Tracking Total 13 | . 5 6 4 5 4 4 . 4 4 5 5 1 13 3 5 5 . 7 5 Tactical Retreats 9 | . 1 . . . 1 . . . 2 3 . . 1 . . . . 1 . Traps | -11 -10 -9 -8 -7 -7 -7 -7 -6 -6 -6 -6 -6 -6 -5 -5 -5 -5 -4 -4 ------- Run | Jun Mat Mat Mat Fac Low Low Dat Pro Fac Ext Cet Arc Hub Fac Upp Upp Zhi Pro Fac Traps Triggered 11 | . 2 1 . 3 . . . . . 2 . . 2 1 . . . . . Indirectly 2 | . . . . . . . . . . . . . 2 . . . . . . Trap Hack Attempts . | . . . . . . . . . . . . . . . . . . . . Triggered . | . . . . . . . . . . . . . . . . . . . . Disarmed . | . . . . . . . . . . . . . . . . . . . . Reprogrammed . | . . . . . . . . . . . . . . . . . . . . Reused . | . . . . . . . . . . . . . . . . . . . . Traps Extracted . | . . . . . . . . . . . . . . . . . . . . Installed . | . . . . . . . . . . . . . . . . . . . . Triggered 4 | . . . . 3 . . . . . 1 . . . . . . . . . Machines | -11 -10 -9 -8 -7 -7 -7 -7 -6 -6 -6 -6 -6 -6 -5 -5 -5 -5 -4 -4 ---------- Run | Jun Mat Mat Mat Fac Low Low Dat Pro Fac Ext Cet Arc Hub Fac Upp Upp Zhi Pro Fac Machines Disabled 35 | . . 3 . 6 . . . . 1 1 2 2 19 . . . . . 1 Max in Single Turn 14 | . . 2 . 4 . . . . . . . 1 14 . . . . . 1 Garrison Access 2 | . . . 1 1 . . . . . . . . . . . . . . . Network Hub 1 | . . . . . . . . . . . . . 1 . . . . . . Energy Cycler 1 | . . . . . . . . . . 1 . . . . . . . . . Machines Repaired . | . . . . . . . . . . . . . . . . . . . . Machines Sabotaged . | . . . . . . . . . . . . . . . . . . . . Overloaded Fab Kills . | . . . . . . . . . . . . . . . . . . . . Hacking | -11 -10 -9 -8 -7 -7 -7 -7 -6 -6 -6 -6 -6 -6 -5 -5 -5 -5 -4 -4 --------- Run | Jun Mat Mat Mat Fac Low Low Dat Pro Fac Ext Cet Arc Hub Fac Upp Upp Zhi Pro Fac Machines Accessed 45 | . 5 4 2 3 . . 4 . 4 8 1 . 2 2 . . 4 . 6 Terminals 25 | . 3 3 1 1 . . . . 2 7 1 . 2 2 . . . . 3 Fabricators 3 | . . . . . . . . . 2 . . . . . . . . . 1 Repair Stations 3 | . 1 1 . . . . . . . 1 . . . . . . . . . Recycling Units 1 | . 1 . . . . . . . . . . . . . . . . . . Scanalyzers 1 | . . . . . . . . . . . . . . . . . . . 1 Garrison Access 4 | . . . 1 2 . . . . . . . . . . . . . . 1 Total Hacks 154 | . 13 11 5 4 . . 25 . 15 22 2 . 8 11 . . 17 . 21 Successful 95 | . 8 6 3 2 . . 25 . 9 9 . . 2 5 . . 17 . 9 Failed 57 | . 4 4 2 2 . . . . 6 13 2 . 6 6 . . . . 12 Catastrophic 7 | . 1 1 1 . . . . . 1 1 1 . 1 . . . . . . Database Lockouts 2 | . 1 1 . . . . . . . . . . . . . . . . . Manual 42 | . 11 6 2 2 . . . . 4 6 1 . 6 . . . . . 4 Terminals 79 | . 9 9 4 2 . . . . 7 17 2 . 8 11 . . . . 10 Fabricators 11 | . . . . . . . . . 8 . . . . . . . . . 3 Repair Stations 9 | . 2 2 . . . . . . . 5 . . . . . . . . . Recycling Units 2 | . 2 . . . . . . . . . . . . . . . . . . Scanalyzers 6 | . . . . . . . . . . . . . . . . . . . 6 Garrison Access 5 | . . . 1 2 . . . . . . . . . . . . . . 2 Terminal Hacks 69 | . 3 4 2 1 . . 25 . 3 5 . . 2 5 . . 17 . 2 Record 16 | . . . . . . . 11 . . . . . . . . . 5 . . Part Schematic 16 | . . 1 . . . . 8 . . 2 . . . 1 . . 4 . . Robot Schematic 4 | . . . . . . . 3 . . . . . . 1 . . . . . Robot Analysis 6 | . 2 . . . . . . . . . . . . . . . 4 . . Prototype ID Bank 8 | . . 1 . . . . 3 . . . . . . . . . 4 . . Open Door 1 | . . . . . . . . . 1 . . . . . . . . . . Branch Access Points 3 | . . . . 1 . . . . 1 . . . . 1 . . . . . Terminal Index 1 | . . . . . . . . . . . . . 1 . . . . . . Fabricator Index 1 | . . . . . . . . . . . . . . . . . . . 1 Alert Level 2 | . . . . . . . . . . . . . 1 1 . . . . . Unreport Threat 8 | . 1 2 1 . . . . . . 2 . . . 1 . . . . 1 Locate Traps 1 | . . . 1 . . . . . . . . . . . . . . . . Assault Status 1 | . . . . . . . . . . 1 . . . . . . . . . Hauler Manifests 1 | . . . . . . . . . 1 . . . . . . . . . . Fabricator Hacks 5 | . . . . . . . . . 4 . . . . . . . . . 1 Network Status 1 | . . . . . . . . . 1 . . . . . . . . . . Load Schematic 3 | . . . . . . . . . 2 . . . . . . . . . 1 Build 1 | . . . . . . . . . 1 . . . . . . . . . . Repair Station Hacks 8 | . 2 2 . . . . . . . 4 . . . . . . . . . Scan Component 4 | . 1 1 . . . . . . . 2 . . . . . . . . . Repair 4 | . 1 1 . . . . . . . 2 . . . . . . . . . Recycling Unit Hacks . | . . . . . . . . . . . . . . . . . . . . Scanalyzer 4 | . . . . . . . . . . . . . . . . . . . 4 Insert Component 2 | . . . . . . . . . . . . . . . . . . . 2 Analyze 2 | . . . . . . . . . . . . . . . . . . . 2 Garrison Access Hacks 2 | . . . 1 1 . . . . . . . . . . . . . . . Seal Access 2 | . . . 1 1 . . . . . . . . . . . . . . . Unauthorized Hacks 7 | . 3 . . . . . . . 2 . . . . . . . . . 2 Terminals 2 | . 1 . . . . . . . . . . . . . . . . . 1 Botnet 1 | . . . . . . . . . . . . . . . . . . . 1 Operators 1 | . 1 . . . . . . . . . . . . . . . . . . Fabricators 3 | . . . . . . . . . 2 . . . . . . . . . 1 Prioritize 1 | . . . . . . . . . 1 . . . . . . . . . . Recompile 2 | . . . . . . . . . 1 . . . . . . . . . 1 Repair Stations . | . . . . . . . . . . . . . . . . . . . . Recycling Units 2 | . 2 . . . . . . . . . . . . . . . . . . Reject 1 | . 1 . . . . . . . . . . . . . . . . . . Mask 1 | . 1 . . . . . . . . . . . . . . . . . . Scanalyzers . | . . . . . . . . . . . . . . . . . . . . Garrison Access . | . . . . . . . . . . . . . . . . . . . . Data Cores Recovered 2 | . . . . 1 . . . . . 1 . . . . . . . . . Used 1 | . . . . 1 . . . . . . . . . . . . . . . Hacking Detections 31 | . 3 4 1 2 . . . . 4 7 1 . 2 2 . . . . 5 Full Trace Events 3 | . . . . . . . . . 1 1 . . . 1 . . . . . Feedback Events . | . . . . . . . . . . . . . . . . . . . . Feedback Blocked . | . . . . . . . . . . . . . . . . . . . . Robot Schematics Acquired 4 | . . . . . . . 3 . . . . . . 1 . . . . . Robots Built . | . . . . . . . . . . . . . . . . . . . . Authchips . | . . . . . . . . . . . . . . . . . . . . Time . | . . . . . . . . . . . . . . . . . . . . Total Robot Build Rating . | . . . . . . . . . . . . . . . . . . . . Part Schematics Acquired 18 | . . 1 . . . . 8 . . 2 . . . 1 . . 4 . 2 Parts Built 1 | . . . . . . . . . 1 . . . . . . . . . . Authchips 1 | . . . . . . . . . 1 . . . . . . . . . . Time 169 | . . . . . . . . . 169 . . . . . . . . . . Total Part Build Rating 6 | . . . . . . . . . 6 . . . . . . . . . . Parts Repaired 4 | . 1 1 . . . . . . . 2 . . . . . . . . . Time 118 | . 26 26 . . . . . . . 66 . . . . . . . . . Parts Recycled . | . . . . . . . . . . . . . . . . . . . . Recycled Matter . | . . . . . . . . . . . . . . . . . . . . Retrieved Matter . | . . . . . . . . . . . . . . . . . . . . Retrieved Components . | . . . . . . . . . . . . . . . . . . . . Parts Scanalyzed 2 | . . . . . . . . . . . . . . . . . . . 2 Part Schematics Acquired 2 | . . . . . . . . . . . . . . . . . . . 2 Parts Damaged . | . . . . . . . . . . . . . . . . . . . . Bothacking | -11 -10 -9 -8 -7 -7 -7 -7 -6 -6 -6 -6 -6 -6 -5 -5 -5 -5 -4 -4 ------------ Run | Jun Mat Mat Mat Fac Low Low Dat Pro Fac Ext Cet Arc Hub Fac Upp Upp Zhi Pro Fac Used RIF Installer . | . . . . . . . . . . . . . . . . . . . . Robots Hacked . | . . . . . . . . . . . . . . . . . . . . Non-combat . | . . . . . . . . . . . . . . . . . . . . Combat . | . . . . . . . . . . . . . . . . . . . . Robot Hacks Applied . | . . . . . . . . . . . . . . . . . . . . Relay Couplers Released . | . . . . . . . . . . . . . . . . . . . . Fabnet Peak Effective % . | . . . . . . . . . . . . . . . . . . . . Robots Rewired 13 | . . . . . . . . . . 11 . . . 2 . . . . . Allies Hacked . | . . . . . . . . . . . . . . . . . . . . Hacks Repelled . | . . . . . . . . . . . . . . . . . . . . Allies | -11 -10 -9 -8 -7 -7 -7 -7 -6 -6 -6 -6 -6 -6 -5 -5 -5 -5 -4 -4 -------- Run | Jun Mat Mat Mat Fac Low Low Dat Pro Fac Ext Cet Arc Hub Fac Upp Upp Zhi Pro Fac Total Allies 24 | . . . . . . . . 1 . 19 2 . . 2 . . . . . Largest Group 9 | . . . . . . . . 1 1 9 4 4 3 2 2 . . . . Highest-Rated Group 387 | . . . . . . . . 96 96 387 376 376 217 58 58 . . . . Highest-Rated Ally 159 | . . . . . . . . 96 96 159 159 159 96 29 29 . . . . Total Orders 10 | . . . . . . . . . 3 4 2 1 . . . . . . . RETURN 10 | . . . . . . . . . 3 4 2 1 . . . . . . . Ally Attacks 391 | . . . . . . . . 20 35 176 76 26 39 3 16 . . . . Total Damage 10568 | . . . . . . . . 510 727 4127 2511 854 1572 20 247 . . . . Kills 64 | . . . . . . . . 7 3 24 14 3 9 . 4 . . . . Allies Corrupted . | . . . . . . . . . . . . . . . . . . . . Allies Melted . | . . . . . . . . . . . . . . . . . . . . Intel | -11 -10 -9 -8 -7 -7 -7 -7 -6 -6 -6 -6 -6 -6 -5 -5 -5 -5 -4 -4 ------- Run | Jun Mat Mat Mat Fac Low Low Dat Pro Fac Ext Cet Arc Hub Fac Upp Upp Zhi Pro Fac Robot Analysis Total 6 | . 2 . . . . . . . . . . . . . . . 4 . . Derelict Logs Recovered 8 | . . . . . 2 2 . . . . . . . . 1 1 . 2 . Drone Launches 16 | . . . . . . . . . 5 6 4 1 . . . . . . . Drone Recoveries 14 | . . . . . . . . . 5 6 2 1 . . . . . . . Exploration | -11 -10 -9 -8 -7 -7 -7 -7 -6 -6 -6 -6 -6 -6 -5 -5 -5 -5 -4 -4 ------------- Run | Jun Mat Mat Mat Fac Low Low Dat Pro Fac Ext Cet Arc Hub Fac Upp Upp Zhi Pro Fac Turns Passed 15503 | . 916 1272 589 2359 827 1561 317 634 1241 1626 384 167 447 304 477 745 236 702 699 Spaces Moved 6508 | 1 445 514 191 887 311 612 126 237 398 623 192 84 227 170 255 415 138 364 318 Core . | . . . . . . . . . . . . . . . . . . . . Treads 5964 | . 108 514 191 681 311 612 126 237 398 623 192 84 227 170 255 415 138 364 318 Legs 544 | 1 337 . . 206 . . . . . . . . . . . . . . . Wheels . | . . . . . . . . . . . . . . . . . . . . Hover . | . . . . . . . . . . . . . . . . . . . . Flight . | . . . . . . . . . . . . . . . . . . . . Fastest Speed 120 | 120 120 160 240 120 250 250 250 250 247 164 162 162 160 160 160 160 160 160 160 Average Speed 199 | 120 169 168 240 213 250 250 250 250 247 217 163 162 162 160 160 160 160 160 160 Slowest Speed 260 | 120 260 240 243 250 250 250 250 250 248 248 164 162 163 160 160 160 160 160 160 Overloaded Moves . | . . . . . . . . . . . . . . . . . . . . Propulsion Burnouts . | . . . . . . . . . . . . . . . . . . . . Robots Hopped . | . . . . . . . . . . . . . . . . . . . . Cave-ins Triggered . | . . . . . . . . . . . . . . . . . . . . Exploration Rate (%) 45 | 2 60 52 20 29 55 74 70 42 10 84 61 82 32 5 48 55 60 58 10 Regions Visited 19 Branch Regions 12 Pre-discovered Areas 5 | . . . . . . . 1 . . . . . . . . . 3 1 . Known Exits Taken 5 | . . . . 1 . . . 1 1 . . . . 1 1 . . . . Unknown Exits Taken 14 | 1 1 1 1 . 1 1 1 . . 1 1 1 1 . . 1 1 1 . Scrap Searched 12 | . . . . . 1 3 . 4 . . . . . . . 3 . 1 . Spaces Dug 79 | . . . . 3 21 . . 17 . . . . 5 . 18 . . 2 13 Terrain Destroyed 638 | . . 90 28 38 44 7 . 24 1 1 . . 193 1 50 55 . 75 31 Melee 5 | . . . . 3 . . . . . . . . . . . . . 2 . Projectile 106 | . . . . . . . . . . 1 . . 22 1 15 14 . 33 20 AOE 526 | . . 90 28 35 44 7 . 24 . . . . 171 . 35 41 . 40 11 Terrain Rammed . | . . . . . . . . . . . . . . . . . . . . Walls Destroyed . | . . . . . . . . . . . . . . . . . . . . Machines Disabled . | . . . . . . . . . . . . . . . . . . . . Actions | -11 -10 -9 -8 -7 -7 -7 -7 -6 -6 -6 -6 -6 -6 -5 -5 -5 -5 -4 -4 --------- Run | Jun Mat Mat Mat Fac Low Low Dat Pro Fac Ext Cet Arc Hub Fac Upp Upp Zhi Pro Fac Total 8111 | . 561 743 282 1167 337 631 129 260 580 876 234 108 265 191 284 454 151 426 432 Wait 392 | . 40 53 9 22 1 3 . . 92 122 1 15 3 . 6 . . 7 18 Move 6489 | . 444 513 190 886 310 611 125 236 397 622 191 83 226 169 254 414 137 363 318 Hop . | . . . . . . . . . . . . . . . . . . . . Pick Up 130 | . 14 31 15 20 1 . . 1 16 1 5 2 2 4 . 4 2 2 10 Fast Attach 51 | . 3 2 3 13 . 3 2 . 3 3 3 . 1 2 . . 5 1 7 Attach 41 | . 2 4 4 9 . . . 2 4 . . 1 2 2 1 2 . 4 4 Detach 2 | . . . . . . . . . . . . . . . . . . . 2 Swap 136 | . 9 16 11 27 9 3 . 4 6 8 2 2 3 . 3 8 3 11 11 Drop 158 | . 15 24 22 31 . 2 2 2 15 9 11 1 4 . . 1 4 2 13 Fire 563 | . 28 98 27 150 16 9 . 15 44 7 12 3 23 5 20 24 . 34 48 Melee 11 | . . . . 3 . . . . . . 6 . . . . . . 2 . Ram . | . . . . . . . . . . . . . . . . . . . . Kick 4 | . 4 . . . . . . . . . . . . . . . . . . Crush 20 | . 2 2 1 2 . . . . 3 6 . 1 1 . . 1 . . 1 Escape Stasis 8 | . . . . 4 . . . . . 4 . . . . . . . . . Rewire 106 | . . . . . . . . . . 94 3 . . 9 . . . . . Trap . | . . . . . . . . . . . . . . . . . . . . Miscellaneous . | . . . . . . . . . . . . . . . . . . . . Route ------- -11/Junkyard -10/Materials (discovered 3 exits: *Mat / [*Min x2]) -9/Materials (discovered 2 exits: *Mat x2) -8/Materials -7/Factory (discovered 4 exits: *Fac / *Sto / *Low x2) -7/Lower Caves -7/Lower Caves -7/Data Miner -6/Proximity Caves -6/Factory (discovered 4 exits: Low x2 / *Ext x2) -6/Extension (discovered 2 exits: *Fac / *Cet) -6/Cetus (discovered 2 exits: *Fac / [*Arc]) -6/Archives (discovered 3 exits: *Fac / *Hub x2) -6/Hub_04(d) (discovered 2 exits: *Fac x2) -5/Factory (discovered 2 exits: *Upp x2) -5/Upper Caves -5/Upper Caves -5/Zhirov -4/Proximity Caves -4/Factory (discovered 2 exits: *Res x2) History --------- Turn | Location | Event 1 | -11/Junkyard | Discovered new exit (range 0) 1 | -11/Junkyard | Entered Materials 301 | -10/Materials | Build established: Mutant 301 | -10/Materials | Discovered new exit (range 7) 340 | -10/Materials | Central database locked down 379 | -10/Materials | Repaired Lgt. Assault Rifle 414 | -10/Materials | Discovered new exit (range 8) 460 | -10/Materials | Discovered new exit (range 16) 917 | -10/Materials | Entered another Materials area 917 | -9/Materials | Evolved 2 slots: Propulsion x1, Utility x1 937 | -9/Materials | Central database locked down 1597 | -9/Materials | Discovered new exit (range 10) 2015 | -9/Materials | Repaired Lgt. Treads 2111 | -9/Materials | Discovered new exit (range 16) 2189 | -9/Materials | Entered another Materials area 2189 | -8/Materials | Evolved 2 slots: Utility x2 2409 | -8/Materials | Build established: Scavenger-Mutant 2485 | -8/Materials | Garrison activated, responded to threat 2703 | -8/Materials | Discovered new exit (range 15) 2778 | -8/Materials | Entered Factory 2778 | -7/Factory | Evolved 2 slots: Propulsion x1, Utility x1 3639 | -7/Factory | Discovered new exit (range 5) 3654 | -7/Factory | Discovered new exit (range 7) 3797 | -7/Factory | Build established: Mutant 4057 | -7/Factory | Garrison activated, responded to threat 4298 | -7/Factory | Cargo convoy interrupted 4651 | -7/Factory | Found Prototype Processor 4651 | -7/Factory | Identified Exp. Targeting Computer 4702 | -7/Factory | Found Prototype Hackware 4950 | -7/Factory | Identified exit to Storage 4950 | -7/Factory | Identified exit to Lower Caves 5137 | -7/Factory | Entered Lower Caves 5321 | -7/Lower Caves | Attracted the attention of an 0b10 checkpoint 5408 | -7/Lower Caves | Learned Factory trap positions 5934 | -7/Lower Caves | Discovered new exit (range 14) 5964 | -7/Lower Caves | Entered another Lower Caves area 6471 | -7/Lower Caves | Learned location of 1 exit from Proximity Caves 7495 | -7/Lower Caves | Discovered new exit (range 11) 7525 | -7/Lower Caves | Entered Data Miner 7525 | -7/Data Miner | Discovered new exit (range 6) 7576 | -7/Data Miner | Met Data Miner 7631 | -7/Data Miner | Learned location of Section 7 (-2) 7631 | -7/Data Miner | Acquired the access code to Warlord's prototype stash 7666 | -7/Data Miner | Received God Mode back door access code from Data Miner 7842 | -7/Data Miner | Entered Proximity Caves 7843 | -6/Proximity Caves | Identified exit to Factory 7967 | -6/Proximity Caves | Escorted by Enhanced Grunt 8476 | -6/Proximity Caves | Entered Factory 8476 | -6/Factory | Accompanied by 1 ally 8476 | -6/Factory | Evolved 2 slots: Propulsion x1, Utility x1 8477 | -6/Factory | Identified exit to Extension 8478 | -6/Factory | Loaded intel: 72 trap records 8780 | -6/Factory | Build established: Scavenger-Mutant 8993 | -6/Factory | Garrison activated, responded to threat 9183 | -6/Factory | Identified Exp. Hacking Suite 9332 | -6/Factory | Fabricated Combat Drone Bay (x1) 9627 | -6/Factory | Identified exit to Lower Caves 9717 | -6/Factory | Entered Extension 9785 | -6/Extension | Rescued a captive Derelict 9785 | -6/Extension | Rescued a captive Derelict 9835 | -6/Extension | Rescued a captive Derelict 9836 | -6/Extension | Rescued a captive Derelict 9894 | -6/Extension | Repaired Broken Arm. Treads 9936 | -6/Extension | Repaired Cold Fusion Reactor 10012 | -6/Extension | Incoming investigation squad redirected 10020 | -6/Extension | Rescued A7 10827 | -6/Extension | Spotted B-75 Beast 10841 | -6/Extension | Allies destroyed B-75 Beast 10852 | -6/Extension | Allies destroyed B-75 Beast 10984 | -6/Extension | Rescued a captive Derelict 11022 | -6/Extension | Rescued a captive Derelict 11023 | -6/Extension | Rescued a captive Derelict 11042 | -6/Extension | Disrupted transfer network 11232 | -6/Extension | Energy Cycler disabled 11232 | -6/Extension | Rescued a captive Derelict 11234 | -6/Extension | Rescued a captive Derelict 11234 | -6/Extension | Rescued a captive Derelict 11243 | -6/Extension | Rescued a captive Derelict 11249 | -6/Extension | Rescued a captive Derelict 11321 | -6/Extension | Discovered new exit (range 10) 11323 | -6/Extension | Discovered new exit (range 6) 11343 | -6/Extension | Entered Cetus 11343 | -6/Cetus | Accompanied by 4 allies (A7) 11348 | -6/Cetus | Acquired a Cetus Manufacturing Module code from A7 11369 | -6/Cetus | Spotted Cetus Guard 11369 | -6/Cetus | Spotted Cetus Guard 11369 | -6/Cetus | Spotted Cetus Guard 11370 | -6/Cetus | Spotted Cetus Guard 11373 | -6/Cetus | Destroyed Cetus Guard 11382 | -6/Cetus | Allies destroyed Cetus Guard 11383 | -6/Cetus | Allies destroyed Cetus Guard 11391 | -6/Cetus | Destroyed Cetus Guard 11481 | -6/Cetus | Started Cetus Manufacturing Module 11506 | -6/Cetus | Manufactured an Enhanced Grunt 11531 | -6/Cetus | Manufactured an Enhanced Grunt 11534 | -6/Cetus | P-60 Hacker assimilated allied 51-A1Q(g) 11544 | -6/Cetus | Cetus Manufacturing Module disabled 11560 | -6/Cetus | Discovered new exit (range 19) 11600 | -6/Cetus | Discovered new exit (range 22) 11601 | -6/Cetus | Spotted Cetus Guard 11604 | -6/Cetus | Spotted Cetus Guard 11604 | -6/Cetus | Spotted Cetus Guard 11604 | -6/Cetus | Allies destroyed Cetus Guard 11606 | -6/Cetus | Allies destroyed Cetus Guard 11613 | -6/Cetus | Allies destroyed Cetus Guard 11616 | -6/Cetus | Allies destroyed Cetus Guard 11637 | -6/Cetus | Met Revision 17 11727 | -6/Cetus | Entered Archives 11727 | -6/Archives | Accompanied by 5 allies (A7) 11768 | -6/Archives | Discovered new exit (range 25) 11805 | -6/Archives | Discovered new exit (range 15) 11822 | -6/Archives | Discovered new exit (range 15) 11894 | -6/Archives | Entered Hub_04(d) 11894 | -6/Hub_04(d) | Accompanied by 3 allies 12150 | -6/Hub_04(d) | Discovered new exit (range 13) 12263 | -6/Hub_04(d) | Spotted B-75 Beast 12310 | -6/Hub_04(d) | Network Hub disabled 12310 | -6/Hub_04(d) | Discovered new exit (range 16) 12341 | -6/Hub_04(d) | System corruption reached 10% 12341 | -6/Hub_04(d) | Entered Factory 12341 | -5/Factory | Evolved 2 slots: Power x1, Utility x1 12342 | -5/Factory | Identified exit to Upper Caves 12645 | -5/Factory | Entered Upper Caves 12645 | -5/Upper Caves | Accompanied by 2 allies 12988 | -5/Upper Caves | Attracted the attention of an 0b10 checkpoint 13067 | -5/Upper Caves | Spotted B-75 Beast 13095 | -5/Upper Caves | Identified exit to Upper Caves 13122 | -5/Upper Caves | Entered another Upper Caves area 13131 | -5/Upper Caves | Encountered a Warlord checkpoint 13152 | -5/Upper Caves | P-70 Sage assimilated allied 57-CC0(M) 13239 | -5/Upper Caves | Learned location of 1 exit from Factory 13760 | -5/Upper Caves | Discovered new exit (range 6) 13867 | -5/Upper Caves | Entered Zhirov 13867 | -5/Zhirov | Discovered new exit (range 3) 13898 | -5/Zhirov | Met Zhirov 13925 | -5/Zhirov | Learned location of Quarantine (-2) 13925 | -5/Zhirov | Learned location of Testing (-3) 13925 | -5/Zhirov | Learned location of Command (-1) 13946 | -5/Zhirov | Zhirov requested help retrieving the SGEMP Prototype 13970 | -5/Zhirov | Found Alien Artifact 13970 | -5/Zhirov | Identified Integrated Reactor 13970 | -5/Zhirov | Installed Integrated Reactor, increased core energy generation (+10) 13993 | -5/Zhirov | Found Alien Artifact 14103 | -5/Zhirov | Entered Proximity Caves 14209 | -4/Proximity Caves | Spotter reported a threat 14234 | -4/Proximity Caves | Spotter reported a threat 14262 | -4/Proximity Caves | Spotter reported a threat 14287 | -4/Proximity Caves | Spotter reported a threat 14500 | -4/Proximity Caves | Spotter reported a threat 14650 | -4/Proximity Caves | Spotter reported a threat 14677 | -4/Proximity Caves | Received a Behemoth hack from an annoying Tinkerer 14706 | -4/Proximity Caves | Spotter reported a threat 14709 | -4/Proximity Caves | Spotter reported a threat 14746 | -4/Proximity Caves | Learned Research stockpile data 14797 | -4/Proximity Caves | Discovered new exit (range 3) 14805 | -4/Proximity Caves | Entered Factory 14805 | -4/Factory | Evolved 2 slots: Propulsion x1, Utility x1 14806 | -4/Factory | Identified exit to Research 14857 | -4/Factory | Discovered exit to Research (range 15) 15022 | -4/Factory | Lost 3 parts (2n1u) 15083 | -4/Factory | Search patrols dispatched 15305 | -4/Factory | Search patrols dispatched 15472 | -4/Factory | Spotted B-86 Titan 15504 | -4/Factory | Self-destructed Last Messages --------------- 15487_ Penetrated by Slug. 15491_ U-05 Engineer builds a Wall. 15493_ Slug penetrates B-86 Titan. 15494_ Centrium Heavy Treads destroyed. 15494_ Penetrated by Slug. 15495_ B-86 Titan exits siege mode. 15498_ U-05 Engineer suffers critical hit (Blast). 15498_ Destroyed Lgt. Ion Engine. 15498_ U-05 Engineer destroyed. 15499_ Imp. Heavy Armor Plating destroyed. 15499_ Penetrated by Slug. 15499_ Slug penetrates Terminal. 15499_ Terminal disabled. 15499_ Penetrated by Slug. 15500_ Slug penetrates Wall. 15500_ Exp. Weapon Shielding destroyed. 15503_ Penetrated by Slug. 15503_ Slug penetrates Wall. 15503_ Penetrated by Slug. 15503_ Exp. Hacking Suite destroyed. Map ----- +----------------------------------------------------+ | ?????????????????????????????????????????????????? | | ?????????????????????????????????????????????????? | | ?????????????????????????????????????????????????? | | ?????????????????????????????????????????????????? | | ?????????????????????????????????????????????????? | | ??????????????????????????????????????#####+###### | | ??????????????????????????????????????# |=[ | | ??????????????????????????????????????# %! | | ??????????????????????????????????????#/ | | ???????????????????????####+######+#### | | ?????????????????????? # | | ?????????????????????? # | | ??????????????????#?? + | | ??????????????????# ? # | | ??????????????????# ? # | | ??????????????????# ???###+######### # = | | ??????????????????# ???# # # | | ??????????????????# ??# ! """ # # | | ??????????????????# ??# !! """ #/############ | | ??????????????????# ?# !! !" # #????? | | ??????????????????+ ?# !! "F" # """"" #????? | | ??????????????????# # """ + ""T"" #????? | | ??????????????????# # ! # #????? | | ?????????????####;# ################+#+###???? | | ??????????%BB ]]| "T +???? | | ??????????%BB ]!%@ #???? | | ???????????# h h ]!=%%% +???? | | ???????????# """" %! """ #???? | | ????????????????""" ^ = """" #???? | | ????????????????""" """" #### ##########???? | | ????????????????""" """" #??# #????????????? | | ????????????????""" """" #??# #????????????? | | ????????????????""" """" #??# #????????????? | | ???????????????? #??#+#????????????? | | ????????????????""" """" """" #?????????????????? | | ????????????????""" """" ?""" #?????????????????? | | ?????????????????""???"" ??"" #????????????###### | | ???????????????????????"????" #????????????# | | ????????????????????????????" +????????????# = | | ????????????????????????????" ?????????????# | | ????????????????????????????? ?????????????# " " | | ????????????????????????????? ?????????????# " " | | ????????????????????????????????????????????# " " | | ????????????????????????????????????????????# " " | | ????????????????????????????????????????????# " " | | ????????????????????????????????????????????# " " | | ????????????????????????????????????????????? " " | | ????????????????????????????????????????????????" | | ????????????????????????????????????????????????? | | ????????????????????????????????????????????????? | +----------------------------------------------------+ Best States ------------- Heat Dissipation 70 Energy Generation 49 Energy Capacity 395 Matter Stores 300 Matter Capacity 300 Sight Range 16 Terrain Scan Density 10 Jamming Range 12 Armor Coverage 1200 Resistance: KI 25 Resistance: TH 25 Resistance: EM 25 Weapon Shielding 90 Weapon Cycling 15 Evasion (%) 55 Targeting Accuracy 12 Core Analysis 6 Recoil Reduction 5 Offensive Hacking 16 Authchip Count 1 Item Schematics ----------------- Huge Storage Unit | -9/Materials | Hacked Combat Drone Bay | -7/Data Miner | Free Lgt. Regenerative Plating | -7/Data Miner | Free Gravity Neutralizer | -7/Data Miner | Free Cld. Cesium-ion Thruster | -7/Data Miner | Free Prc. Rocket Launcher | -7/Data Miner | Free Gyrokinetic Inverter | -7/Data Miner | Free Imp. Dynamic Insulation System | -7/Data Miner | Free Imp. Arc Projector | -7/Data Miner | Free Adv. Shield Generator | -6/Extension | Hacked Imp. Heavy Armor Plating | -6/Extension | Hacked Adv. Medium Treads | -5/Factory | Hacked Assault Drone Bay | -5/Zhirov | Free Exp. Heat Sink | -5/Zhirov | Free Exp. Optical Array | -5/Zhirov | Free Imp. Arc Thrower | -5/Zhirov | Free Centrium Heavy Treads | -4/Factory | Scanalyzed Centrium Medium Armor Plating | -4/Factory | Scanalyzed Robot Schematics ------------------ S-27 Virus | -7/Data Miner | Free E-15 Imp | -7/Data Miner | Free B-48 Gladiator | -7/Data Miner | Free Y-64 Sentinel | -5/Factory | Hacked Fabricated ------------ Combat Drone Bay | x1 | -6/Factory | Authchip Alien Tech Used ----------------- Integrated Reactor Achievements -------------- None Challenges ------------ None Game ------ Seed SmartbombAlphaCompactor Manual? 0 Play Time 01:18:56 Cumulative 849.3 hours Start 2023.04.01 @ 09:24:07 End 2023.04.01 @ 11:20:28 Sessions 3 Manual Loads 0 Difficulty Rogue Special Mode None Game No. 1274 Rogue 1274 Adventurer 0 Explorer 0 Win Type - Total 81 Types 47/1/14/14/4/0/0/1/0 Lore% 92 Gallery% 92 Achievement% 85 Wizard Run 0 Options --------- ASCII 1 Keyboard 0 Movement Numpad Keybinds 0 Fullscreen 0 Font 14/SmallcapsGlow Map View 76x50 Tactical HUD 1 Map Filters NONE Filters NONE Steam 1 RUN: 86a2f3e8-1cef-445a-b007-f4732710af92